Cogmind - Beta 10.2 @@@ ROGUE MODE // 2020.11.29 @ 22:41:41 // Halloween2020/ForbiddenLore Player: CrossedViper Result: Destroyed by as-12925 with Assembled F-torch Performance ------------- Evolutions (0) 0 Regions Visited (3) 600 Robots Destroyed (0) 0 Value Destroyed (0) 0 Prototype IDs (24) 480 Alien Tech Used (0) 0 Bonus (321) 321 TOTAL SCORE: 1401 Bonus ------- Follower Combat Kills 21 Aligned with FarCom 300 Cogmind --------- Core Integrity 0/250 Matter 213/300 Energy 100/100 System Corruption 0% Temperature Cool (40) Movement Core (300) Ox5 Location -10/Exiles Parts ------- > --- POWER (1) -------- (None) > --- PROPULSION (2) --- (None) > --- UTILITY (2) ------ Large Storage Unit > --- WEAPON (2) ------- (None) > --- INVENTORY (10) --- Ion Engine Light Treads Light Treads Wheel Advanced Beam Cannon Assault Rifle Shock Trap Shock Trap Shock Trap Peak State ------------ > --- POWER ------------ Light Ion Engine > --- PROPULSION ------- Aluminum Leg > --- UTILITY ---------- Large Storage Unit > --- WEAPON ----------- Advanced Beam Cannon Field Lobotomy Kit > --- INVENTORY -------- Ion Engine Light Treads Light Treads Wheel Advanced Beam Cannon Assault Rifle Shock Trap Shock Trap Shock Trap [Rating: 17] Favorites ----------- Power Light Ion Engine Engine Light Ion Engine Propulsion Aluminum Leg Treads Light Treads Leg Aluminum Leg Utility Heat Sink Device Heat Sink Storage Large Storage Unit Weapon Advanced Beam Cannon Energy Gun Small Laser Energy Cannon Advanced Beam Cannon Special Weapon Field Lobotomy Kit Build | -11 -10 -10 -10 ------- Run | Scr Mat Min Exi Slots Evolved . | . . . . Power . | . . . . Propulsion . | . . . . Utility . | . . . . Weapon . | . . . . Parts Attached 16 | . 12 3 1 Power 2 | . 1 1 . Engine 2 | . 1 1 . Core . | . . . . Reactor . | . . . . Propulsion 5 | . 5 . . Treads 3 | . 3 . . Leg 2 | . 2 . . Wheel . | . . . . Hover . | . . . . Flight . | . . . . Utility 3 | . 3 . . Device 1 | . 1 . . Storage 2 | . 2 . . Processor . | . . . . Hackware . | . . . . Protection . | . . . . Artifact . | . . . . Weapon 6 | . 3 2 1 Energy Gun . | . . . . Energy Cannon 5 | . 3 2 . Ballistic Gun . | . . . . Ballistic Cannon . | . . . . Launcher . | . . . . Special Weapon 1 | . . . 1 Impact Weapon . | . . . . Slashing Weapon . | . . . . Piercing Weapon . | . . . . Special Melee Weapon . | . . . . Unidentified Prototypes 1 | . 1 . . Parts Lost 7 | . . . 7 Power 1 | . . . 1 Propulsion 2 | . . . 2 Utility 1 | . . . 1 Weapon 3 | . . . 3 Highest Loss Streak 7 | . . . 7 Average Slot Usage (%) 96 | . 84 100 99 Engine 13 | . 11 14 14 Leg 27 | . 23 28 27 Device 13 | . 11 14 13 Storage 13 | . 13 14 14 Energy Cannon 26 | . 20 28 27 Naked Turns . | . . . . Heaviest Build 44 | 10 44 28 31 Greatest Support 40 | 20 40 20 20 Greatest Overweight (x) 8 | . 2 1 8 Average Overweight (x) . | . . 1 1 Largest Inventory Capacity 12 | . 12 10 10 Average Capacity 9 | . 9 10 10 Most Carried 10 | . 9 9 10 Average Carried 8 | . 6 8 9 Final Capacity 10 | 6 10 10 10 Final Carried 9 | 6 9 9 9 Class Distribution -------------------- 100% | Mutant Dominant Class ---------------- Mutant | -10/Materials Mutant | -10/Mines Mutant | -10/Exiles Resources | -11 -10 -10 -10 ----------- Run | Scr Mat Min Exi Matter Collected 221 | 200 . 21 . Remotely . | . . . . Salvage Created . | . . . . Parts . | . . . . Haulers Intercepted . | . . . . Recyclers Shooed . | . . . . Parts Field Recycled . | . . . . Retrieved Matter . | . . . . Parts Self-Destructed . | . . . . Prevented . | . . . . Kills | -11 -10 -10 -10 ------- Run | Scr Mat Min Exi Combat Hostiles Destroyed . | . . . . Classes Destroyed . | . . . . Best Kill Streak . | . . . . Combat Bots Only . | . . . . Max Kills in Single Turn . | . . . . Gunslinging . | . . . . Exploded . | . . . . Melee . | . . . . Uniques/NPCs Destroyed . | . . . . Combat | -11 -10 -10 -10 -------- Run | Scr Mat Min Exi Damage Taken 773 | . . 2 771 Core 252 | . . . 252 Absorbed by Shields . | . . . . Core Remaining (%) 100 | 100 . . . Volleys Fired 2 | . 1 . 1 Largest 2 | . 2 . 2 Hottest 136 | . 136 . 136 Shots Fired 4 | . 2 . 2 Gun . | . . . . Cannon 4 | . 2 . 2 Launcher . | . . . . Special . | . . . . Kinetic . | . . . . Thermal 4 | . 2 . 2 Explosive . | . . . . Electromagnetic . | . . . . Robot Hit Streak 1 | . 1 . . Robot Miss Streak 2 | . 1 . 2 Penetration Max . | . . . . Secondary Targets . | . . . . Shots Hit Robots 1 | . 1 . . Core Hits . | . . . . Critical Hits . | . . . . Critical Kills . | . . . . Critical Parts Destroyed . | . . . . Melee Attacks . | . . . . Impact . | . . . . Slashing . | . . . . Piercing . | . . . . Sneak Attacks . | . . . . Combat Hostiles . | . . . . Follow-up Attacks . | . . . . Damage Inflicted 16 | . . 16 . Guns . | . . . . Cannons . | . . . . Explosions . | . . . . Melee . | . . . . Ramming 16 | . . 16 . Kinetic . | . . . . Thermal . | . . . . Explosive . | . . . . Electromagnetic . | . . . . Impact . | . . . . Slashing . | . . . . Piercing . | . . . . Highest Corruption . | . . . . Average Corruption . | . . . . Corruption Purged . | . . . . Overload Shots . | . . . . Overflow Damage . | . . . . Projectiles . | . . . . Explosions . | . . . . Melee . | . . . . Knockbacks 1 | . . 1 . Impact 1 | . . 1 . Kinetic . | . . . . Secondary . | . . . . Self-Inflicted Damage 2 | . . 2 . Shots . | . . . . Rammed 2 | . . 2 . Targets Rammed 5 | . . 5 . Kicked 3 | . . 3 . Crushed . | . . . . Highest Temperature 45 | . 45 . 45 Average Temperature 26 | . 26 . 25 Received Heat Transfer 80 | . . . 80 Siege Activations . | . . . . Robots Corrupted . | . . . . Combat Hostiles . | . . . . Parts Fried . | . . . . Impact Corruptions . | . . . . Robots Melted . | . . . . Combat Hostiles . | . . . . Parts Melted . | . . . . Heat Transferred . | . . . . Parts Sabotaged . | . . . . Parts Stolen . | . . . . Parts Stripped . | . . . . Power Chain Reactions . | . . . . Missiles Intercepted . | . . . . Alert | -11 -10 -10 -10 ------- Run | Scr Mat Min Exi Peak Influence 95 | . 45 95 . Initial 17 | . . 17 . Average 28 | . 15 34 . Maximum Alert Level . | . . . . Low Security (%) 100 | . 100 100 . Level 1 . | . . . . Level 2 . | . . . . Level 3 . | . . . . Level 4 . | . . . . Level 5 . | . . . . High Security . | . . . . Max Security . | . . . . Squads Dispatched 1 | . 1 . . Investigation 1 | . 1 . . Extermination . | . . . . Reinforcement . | . . . . Assault . | . . . . Garrison . | . . . . Intercept . | . . . . Construction Impeded . | . . . . Haulers Reinforced . | . . . . Stealth | -11 -10 -10 -10 --------- Run | Scr Mat Min Exi Distress Signals 2 | . 2 . . Communications Jammed . | . . . . Distress Signals . | . . . . Times Spotted 17 | . 4 1 12 Peak Tracking Total 12 | . 3 3 12 Tactical Retreats 1 | . . . 1 Traps | -11 -10 -10 -10 ------- Run | Scr Mat Min Exi Traps Triggered 4 | . 4 . . Indirectly . | . . . . Trap Hack Attempts . | . . . . Triggered . | . . . . Disarmed . | . . . . Reprogrammed . | . . . . Reused . | . . . . Traps Extracted . | . . . . Installed . | . . . . Triggered . | . . . . Machines | -11 -10 -10 -10 ---------- Run | Scr Mat Min Exi Machines Disabled 1 | . . . 1 Max in Single Turn 1 | . . . 1 Machines Sabotaged . | . . . . Garrisons Compromised . | . . . . Overloaded Fab Kills . | . . . . Fab Network Shutdowns . | . . . . Hacking | -11 -10 -10 -10 --------- Run | Scr Mat Min Exi Machines Accessed 3 | . 1 . 2 Terminals . | . . . . Fabricators . | . . . . Repair Stations . | . . . . Recycling Units 1 | . 1 . . Scanalyzers . | . . . . Garrison Access . | . . . . Total Hacks 3 | . 1 . 2 Successful 3 | . 1 . 2 Failed . | . . . . Catastrophic . | . . . . Database Lockouts . | . . . . Manual 2 | . 1 . 1 Terminals . | . . . . Fabricators . | . . . . Repair Stations . | . . . . Recycling Units 1 | . 1 . . Scanalyzers . | . . . . Garrison Access . | . . . . Terminal Hacks 2 | . . . 2 Record 1 | . . . 1 EX-Prototype ID Bank 1 | . . . 1 Fabricator Hacks . | . . . . Repair Station Hacks . | . . . . Recycling Unit Hacks . | . . . . Scanalyzer . | . . . . Garrison Access Hacks . | . . . . Unauthorized Hacks 1 | . 1 . . Terminals . | . . . . Fabricators . | . . . . Repair Stations . | . . . . Recycling Units 1 | . 1 . . Tunnel 1 | . 1 . . Scanalyzers . | . . . . Garrison Access . | . . . . Data Cores Recovered . | . . . . Used . | . . . . Hacking Detections . | . . . . Full Trace Events . | . . . . Feedback Events . | . . . . Feedback Blocked . | . . . . Robot Schematics Acquired . | . . . . Robots Built . | . . . . Matter . | . . . . Time . | . . . . Total Robot Build Rating . | . . . . Part Schematics Acquired . | . . . . Parts Built . | . . . . Matter . | . . . . Time . | . . . . Total Part Build Rating . | . . . . Parts Repaired . | . . . . Time . | . . . . Parts Recycled . | . . . . Recycled Matter . | . . . . Retrieved Matter . | . . . . Retrieved Components . | . . . . Parts Scanalyzed . | . . . . Part Schematics Acquired . | . . . . Parts Damaged . | . . . . Bothacking | -11 -10 -10 -10 ------------ Run | Scr Mat Min Exi Used RIF Installer . | . . . . Robots Hacked . | . . . . Non-combat . | . . . . Combat . | . . . . Robot Hacks Applied . | . . . . Relay Couplers Released . | . . . . Robots Rewired . | . . . . Allies Hacked . | . . . . Hacks Repelled . | . . . . Allies | -11 -10 -10 -10 -------- Run | Scr Mat Min Exi Total Allies 2 | . . 2 . Largest Group 2 | . . 2 1 Highest-Rated Group 47 | . . 47 31 Highest-Rated Ally 31 | . . 31 31 Total Orders . | . . . . Ally Attacks 5 | . . 5 . Total Damage 107 | . . 107 . Kills 3 | . . 3 . Allies Corrupted . | . . . . Allies Melted . | . . . . Intel | -11 -10 -10 -10 ------- Run | Scr Mat Min Exi Robot Analysis Total . | . . . . Derelict Logs Recovered 1 | . . 1 . Drone Launches . | . . . . Drone Recoveries . | . . . . Exploration | -11 -10 -10 -10 ------------- Run | Scr Mat Min Exi Turns Passed 1005 | . 184 369 452 Spaces Moved 606 | 1 105 207 293 Core 2 | . . . 2 Treads 9 | . 9 . . Legs 595 | 1 96 207 291 Wheels . | . . . . Hover . | . . . . Flight . | . . . . Fastest Speed 120 | 120 120 150 150 Average Speed 149 | 120 141 150 152 Slowest Speed 450 | 120 180 150 450 Overloaded Moves . | . . . . Propulsion Burnouts . | . . . . Robots Hopped . | . . . . Cave-ins Triggered . | . . . . Exploration Rate (%) 30 | 2 23 40 56 Regions Visited 3 Branch Regions 2 Pre-discovered Areas 2 | . 1 . 1 Known Exits Taken . | . . . . Unknown Exits Taken 3 | 1 1 1 . Scrap Searched 1 | . . 1 . Spaces Dug . | . . . . Terrain Destroyed . | . . . . Melee . | . . . . Projectile . | . . . . AOE . | . . . . Terrain Rammed . | . . . . Walls Destroyed . | . . . . Machines Disabled . | . . . . Actions | -11 -10 -10 -10 --------- Run | Scr Mat Min Exi Total 701 | . 139 263 299 Wait 52 | . 3 46 3 Move 603 | . 104 206 293 Hop . | . . . . Pick Up 18 | . 14 3 1 Fast Attach 4 | . 4 . . Attach 11 | . 7 3 1 Detach . | . . . . Swap 1 | . 1 . . Drop 5 | . 5 . . Fire 2 | . 1 . 1 Melee . | . . . . Ram . | . . . . Kick 5 | . . 5 . Crush . | . . . . Escape Stasis . | . . . . Rewire . | . . . . Trap . | . . . . Miscellaneous . | . . . . Route ------- -11/Scrapyard -10/Materials -10/Mines (discovered 2 exits: [*Mat] / *Exi) -10/Exiles (discovered 1 exit: [*Min]) History --------- Turn | Location | Event 1 | -11/Scrapyard | Discovered new exit (range 0) 1 | -11/Scrapyard | Entered Materials 138 | -10/Materials | Discovered new exit (range 10) 155 | -10/Materials | Met 8R-AWN 185 | -10/Materials | Entered Mines 186 | -10/Mines | Followed 8R-AWN into the Mines 206 | -10/Mines | Met a Derelict bent on vengeance 206 | -10/Mines | Discovered new exit (range 6) 233 | -10/Mines | Found a hidden stash of uninstalled traps 304 | -10/Mines | Build established: Mutant 366 | -10/Mines | Learned Materials security intel 413 | -10/Mines | Discovered new exit (range 5) 554 | -10/Mines | Entered Exiles 554 | -10/Exiles | Accompanied by 1 ally 574 | -10/Exiles | Discovered new exit (range 15) 584 | -10/Exiles | Led the pair of lost Derelicts to a safe place 595 | -10/Exiles | Welcomed by 8R-AWN 617 | -10/Exiles | Met EX-HEX 656 | -10/Exiles | Met EX-BIN 742 | -10/Exiles | Aligned with FarCom system 743 | -10/Exiles | Given EX-Vault access code 788 | -10/Exiles | Met EX-DEC 794 | -10/Exiles | Learned location of Zion (-7) 877 | -10/Exiles | Opened EX-Vault 887 | -10/Exiles | Found Field Lobotomy Kit 918 | -10/Exiles | Warned to stay clear of 0b10 Research branches 987 | -10/Exiles | Attacked by the Exiles 995 | -10/Exiles | Core integrity fell below 50% 1003 | -10/Exiles | Core integrity fell below 20% 1006 | -10/Exiles | Destroyed by as-12925 with Assembled F-torch Last Messages --------------- sneak in here and steal a few of HEX's prototypes. 00986_ Machine disabled. 00987_ EXILES: Hostile robot within lab perimeter. Defensive protocols time, folks! 00989_ EX-DEC: "Let's see what this bad boy can do..." 00989_ EX-DEC deploys DAS Turret. 00989_ Knocked back. 00990_ Aluminum Leg destroyed. 00990_ Adv. Beam Cannon destroyed. 00990_ Heat Sink destroyed. 00994_ Knocked back. 00996_ Adv. Beam Cannon destroyed. 00996_ Knocked back. 00997_ EX-BIN: "I just want to science!" 00998_ Knocked back. 01000_ Aluminum Leg destroyed. 01000_ Knocked back. 01004_ Field Lobotomy Kit destroyed. 01004_ Lgt. Ion Engine destroyed. 01004_ Knocked back. Map ----- +----------------------------------------------------+ | ???????????????????????????? """#???????#" | | ????????????????????????????" """#???????## | | ???????????????????????????"" #????????# | | ???????????????????????????"" #????????#" | | ???????????????????????????"" "#????????#" | | ??????????????????????????? ""?????????#" " | | ????????????????????????????" "?????????##" ## | | ????????????????????????????# #????????##"" #? | | ??????????????????????????### ###?######"" #? | | ?????????????? """#####X# #"###""""""" ## | | ????????????? """""" " "" # | | ????????????? "" """ " | | ?????????????# " " | | ??????????????## | | ???????????????### | | ?????????????????## | | ??????????????????## | | ???????????????????##" | | ????????????????????#""" """""" | | ???????????????????##" ######""" | | ???????????????????#"" ""##????#####" | | ??????????????????##""" """##?????????## | | ??????????????????#""" """##???????????# | | ??????????????????#" ""#????????????# | | ??????????????????#"" a ##????????????" | | ??????????????????#""" @ #??????????? | | ??????????????????#"" a ?????? | | ??????????????????##"" t c ????? | | ???????????????????#"" ????? | | ???????????????????## ????? | | ????????????????????#" "????? "" | | ????????????????????#"""" ""???????" | | ????????????????????#"" ""#????????? | | ????????????????????#" c """"??????????? | | ????????????????????#""" "????????????? | | ?????????????????????# "????????????? | | ??????????????????????"" """????????????? | | ???????????????????????""" ??????????????? | | ????????????????????????"""" ???????????????? | | ?????????????????????????? ?????????????????? | | ????????????????????????????#????????????????????? | | ?????????????????????????????????????????????????? | | ?????????????????????????????????????????????????? | | ?????????????????????????????????????????????????? | | ?????????????????????????????????????????????????? | | ?????????????????????????????????????????????????? | | ?????????????????????????????????????????????????? | | ?????????????????????????????????????????????????? | | ?????????????????????????????????????????????????? | | ?????????????????????????????????????????????????? | +----------------------------------------------------+ Best States ------------- Heat Dissipation 35 Energy Generation 10 Energy Capacity 125 Matter Stores 300 Matter Capacity 300 Sight Range 16 Terrain Scan Density 10 Evasion (%) 40 Recoil Reduction 1 Item Schematics ----------------- None Robot Schematics ------------------ None Fabricated ------------ Nothing Alien Tech Used ----------------- None Achievements -------------- None Challenges ------------ None Game ------ Seed SupersonicVariableAnalyzer Manual? 0 Play Time 00:06:36 Cumulative 115.2 hours Start 2020.11.29 @ 22:36:53 End 2020.11.29 @ 22:41:41 Sessions 1 Manual Loads 0 Difficulty Rogue Special Mode Halloween2020/ForbiddenLore Game No. 115 Rogue 108 Adventurer 0 Explorer 7 Win Type - Total 1 Types 0/0/1/0/0/0/0/0/0 Lore% 55 Gallery% 82 Achievement% 64 Wizard Run 0 Options --------- ASCII 0 Keyboard 0 Movement Numpad Keybinds 0 Fullscreen 1 Font 18/X11 Map View 76x50 Tactical HUD 1 Map Filters NONE Filters NONE Steam 1 RUN: bfb237d8-d5c7-4f1f-bf39-a4dab8098377